bitfinex/quotes_SOLUSD_20250619
["timestamp","ask_amount","ask_price","bid_price","bid_amount"]
[1750315285335,8.18998461,145.38,145.36,24.07803784]
[1750315285932,8.18998461,145.37,145.36,24.07803784]
[1750315286139,8.18998461,145.37,145.36,6.87947165]
[1750315286649,8.18998461,145.37,145.34,17.20092259]
[1750315286950,26.0,145.4,145.34,17.20092259]
[1750315287133,8.18998461,145.36,145.34,17.20092259]
[1750315291759,8.18998461,145.37,145.34,17.20092259]
[1750315293338,8.18998461,145.37,145.34,24.08134091]
[1750315293957,26.0,145.4,145.34,24.08134091]
[1750315294139,8.18998461,145.37,145.34,24.08134091]
[1750315296147,8.18998461,145.37,145.34,17.20092259]
[1750315297259,8.18998461,145.37,145.34,24.08134091]
[1750315299270,8.18998461,145.36,145.34,17.20092259]
[1750315300062,26.0,145.4,145.34,17.20092259]
[1750315300264,8.18998461,145.37,145.34,17.20092259]
[1750315301356,8.18998461,145.36,145.34,17.20092259]
[1750315302268,8.18998461,145.39,145.34,17.20092259]
[1750315302445,8.18998461,145.35,145.34,17.20092259]
[1750315302646,5.04345779,145.41,145.34,17.20092259]
[1750315302647,8.18998461,145.36,145.34,17.20092259]
[1750315302847,5.25201512,145.36,145.34,17.20092259]
[1750315304260,26.0,145.38,145.34,17.20092259]
[1750315304463,5.25201512,145.36,145.34,17.20092259]
[1750315305776,18.64964886,145.35,145.3,58.83906736]
[1750315306078,5.25201512,145.31,145.26,24.09472668]
[1750315306293,5.25201512,145.29,145.26,24.09472668]
[1750315307299,26.0,145.32,145.27,5.25201512]
[1750315307481,5.25201512,145.31,145.27,5.25201512]
[1750315308359,5.25201512,145.31,145.28,24.09140968]
[1750315308975,8.2124125,145.31,145.28,24.09140968]
[1750315309757,8.2124125,145.32,145.28,32.30382218]
[1750315310770,8.2124125,145.32,145.28,24.09140968]
[1750315310972,8.2124125,145.32,145.28,32.30382218]
[1750315313681,8.2124125,145.31,145.28,24.09140968]
[1750315316001,8.2124125,145.29,145.28,24.09140968]
[1750315317095,8.2124125,145.29,145.26,24.09472668]
[1750315318184,8.2124125,145.28,145.26,24.09472668]
[1750315319700,8.2124125,145.28,145.26,6.88420762]
[1750315319882,8.2124125,145.27,145.26,6.88420762]
[1750315320380,8.2124125,145.27,145.25,7.49661824]
[1750315320580,8.2124125,145.26,145.25,7.49661824]
[1750315320894,8.2124125,145.26,145.25,0.6121199]
[1750315321085,26.0,145.26,145.25,0.6121199]
[1750315321291,34.2124125,145.26,145.25,7.49680148]
[1750315322318,34.2124125,145.26,145.25,0.6121199]
[1750315322696,42.84587386,145.26,145.25,0.6121199]
[1750315322907,26.0,145.23,145.18,6.8880011]
[1750315323093,8.2124125,145.19,145.17,17.22020905]
[1750315324292,8.2124125,145.2,145.17,17.22020905]
[1750315325212,8.2124125,145.2,145.17,24.10868463]
[1750315325392,34.2124125,145.21,145.17,24.10868463]
[1750315326320,34.2124125,145.21,145.17,17.22020905]
[1750315326887,27.84,145.24,145.17,17.22020905]
[1750315327093,8.2124125,145.22,145.17,113.63262155]
[1750315328017,26.0,145.24,145.18,8.2124125]
[1750315328319,8.2124125,145.26,145.21,8.2124125]
[1750315328618,8.2124125,145.25,145.22,6.88610384]
[1750315329517,8.2124125,145.25,145.22,17.2152596]
[1750315329901,8.2124125,145.24,145.22,17.2152596]
[1750315331394,8.2124125,145.24,145.19,24.1063434]
[1750315331601,8.2124125,145.24,145.2,8.2124125]
[1750315332730,8.2124125,145.25,145.2,8.2124125]
[1750315334033,8.2124125,145.25,145.22,6.88610384]
[1750315335110,8.2124125,145.24,145.22,6.88610384]
[1750315336123,8.2124125,145.24,145.21,24.10299129]
[1750315337727,8.2124125,145.24,145.21,17.21641324]
[1750315337927,26.0,145.26,145.21,17.21641324]
[1750315338111,8.2124125,145.24,145.21,17.21641324]
[1750315340113,8.2124125,145.24,145.21,24.10299129]
[1750315340628,8.2124125,145.25,145.21,32.31540379]
[1750315341126,34.2124125,145.24,145.21,24.10299129]
[1750315346514,26.0,145.24,145.21,24.10299129]
[1750315347735,26.0,145.24,145.21,8.2124125]
[1750315349843,26.0,145.24,145.22,6.88610384]
[1750315351827,26.0,145.24,145.18,77.19765822]
[1750315352023,26.0,145.24,145.21,8.2124125]
[1750315353226,26.0,145.24,145.2,8.2124125]
[1750315354132,34.2124125,145.24,145.21,24.10302319]
[1750315355429,26.0,145.24,145.21,24.10302319]
[1750315355831,26.0,145.24,145.21,32.31543569]
[1750315359522,26.0,145.23,145.2,8.2124125]
[1750315361545,26.0,145.23,145.21,6.88657805]
[1750315362445,26.0,145.23,145.21,15.09899055]
[1750315363748,8.2124125,145.25,145.21,32.31543569]
[1750315364447,8.2124125,145.25,145.21,24.10302319]
[1750315364649,8.2124125,145.25,145.21,32.31543569]
[1750315364856,4.91228687,145.24,145.21,32.31543569]
[1750315365169,8.2124125,145.25,145.21,32.31543569]
[1750315365323,4.91230423,145.24,145.21,32.31543569]
[1750315365524,8.2124125,145.25,145.21,32.31543569]
[1750315366152,8.2124125,145.25,145.21,8.2124125]
[1750315366530,4.91343413,145.24,145.21,8.2124125]
[1750315366837,8.2124125,145.25,145.21,8.2124125]
[1750315367145,4.91409495,145.24,145.21,8.2124125]
[1750315367383,8.2124125,145.25,145.22,24.10136344]
[1750315367554,13.12649199,145.24,145.22,24.10136344]
[1750315367739,34.2124125,145.24,145.22,24.10136344]
[1750315368136,26.0,145.24,145.22,24.10136344]
[1750315371959,4.91618401,145.23,145.22,24.10136344]
[1750315372832,4.91618401,145.23,145.2,24.10468319]
[1750315373153,26.0,145.24,145.21,5.26068471]
[1750315373350,4.91618328,145.23,145.21,5.26068471]
[1750315373531,26.0,145.24,145.21,5.26068471]
[1750315373860,4.91608275,145.23,145.21,5.26068471]
[1750315374050,26.0,145.24,145.21,5.26068471]
[1750315374357,4.91607119,145.23,145.21,5.26068471]
[1750315374555,26.0,145.24,145.21,5.26068471]
[1750315374762,4.91609071,145.23,145.21,5.26068471]
[1750315374945,26.0,145.24,145.22,6.88610384]
[1750315375147,4.91609581,145.23,145.22,6.88610384]
[1750315375955,26.0,145.24,145.22,6.88610384]
[1750315376161,4.91614754,145.23,145.22,6.88610384]
[1750315378972,4.91613734,145.23,145.22,6.88610384]
[1750315383356,4.91613734,145.23,145.2,24.10468319]
[1750315383558,26.0,145.24,145.21,5.26068471]
[1750315383758,4.91632065,145.23,145.21,5.26068471]
[1750315383959,26.0,145.24,145.21,5.26068471]
[1750315384460,4.91628242,145.23,145.21,5.26068471]
[1750315384659,26.0,145.24,145.21,5.26068471]
[1750315384863,4.91613963,145.23,145.21,5.26068471]
[1750315385159,26.0,145.24,145.21,5.26068471]
[1750315385374,4.9161362,145.23,145.22,6.88610384]
[1750315387073,4.91663071,145.23,145.22,6.88610384]
[1750315389902,4.91724191,145.23,145.22,6.88610384]
[1750315392758,4.91742362,145.23,145.22,6.88610384]
[1750315393477,26.0,145.24,145.22,6.88610384]
[1750315395166,26.0,145.24,145.21,24.10302319]
[1750315400790,26.0,145.24,145.21,29.3637079]
[1750315401893,26.0,145.26,145.22,5.26068471]
[1750315402193,4.91539824,145.25,145.24,12.14584031]
[1750315402598,5.07266475,145.27,145.24,29.35872932]
[1750315402804,4.91298071,145.26,145.24,29.35872932]
[1750315402972,5.26068471,145.28,145.24,29.35872932]
[1750315403172,9.98462261,145.27,145.24,29.35872932]
[1750315403386,4.91297719,145.26,145.24,29.35872932]
[1750315403588,5.07148845,145.27,145.24,29.35872932]
[1750315403784,4.91422194,145.26,145.24,29.35872932]
[1750315404120,5.07188048,145.27,145.24,29.35872932]
[1750315404289,4.91488073,145.26,145.24,29.35872932]
[1750315404606,5.07301554,145.27,145.24,5.26068471]
[1750315404947,5.26068471,145.28,145.22,58.53188265]
[1750315404948,4.91614214,145.26,145.23,5.26068471]
[1750315405073,5.07315447,145.27,145.23,5.26068471]
[1750315405398,4.91624632,145.26,145.23,5.26068471]
[1750315405577,4.91624632,145.26,145.22,58.53188265]
[1750315405578,5.07257101,145.27,145.24,5.26068471]
[1750315405772,4.9146778,145.26,145.24,5.26068471]
[1750315405970,5.07254294,145.27,145.24,5.26068471]
[1750315406174,4.91474085,145.26,145.25,6.88468158]
[1750315409823,4.91702658,145.26,145.25,6.88468158]
[1750315412198,4.91702658,145.26,145.24,17.21253341]
[1750315412433,26.0,145.27,145.24,22.47321812]
[1750315412620,4.92408186,145.26,145.24,22.47321812]
[1750315412820,26.0,145.27,145.24,22.47321812]
[1750315413119,4.92425501,145.26,145.24,22.47321812]
[1750315413323,26.0,145.27,145.24,29.35837372]
[1750315413528,4.92366401,145.26,145.24,29.35837372]
[1750315413707,26.0,145.27,145.24,29.35837372]
[1750315414018,4.92300251,145.26,145.24,29.35837372]
[1750315414203,26.0,145.27,145.24,29.35837372]
[1750315414405,4.92440897,145.26,145.24,29.35837372]
[1750315414609,26.0,145.27,145.24,29.35837372]
[1750315414807,4.92140816,145.26,145.24,29.35837372]
[1750315415122,26.0,145.27,145.24,29.35837372]
[1750315415325,4.92062968,145.26,145.24,29.35837372]
[1750315415619,26.0,145.27,145.24,29.35837372]
[1750315415824,4.92544627,145.26,145.24,29.35837372]
[1750315416004,26.0,145.27,145.24,29.35837372]
[1750315416318,4.92528865,145.26,145.24,29.35837372]
[1750315416505,26.0,145.27,145.24,29.35837372]
[1750315416709,4.92506888,145.26,145.24,29.35837372]
[1750315416899,26.0,145.27,145.24,29.35837372]
[1750315417100,4.92412242,145.26,145.24,29.35837372]
[1750315417326,26.0,145.27,145.24,29.35837372]
[1750315418607,26.0,145.27,145.24,17.21253341]
[1750315418834,4.92937807,145.26,145.24,17.21253341]
[1750315419125,26.0,145.27,145.24,17.21253341]
[1750315419315,26.0,145.27,145.24,22.47321812]
[1750315419946,26.0,145.27,145.24,24.09768901]
[1750315420526,31.26068471,145.27,145.24,24.09768901]
[1750315420730,4.93036859,145.26,145.24,24.09768901]
[1750315420903,31.26068471,145.27,145.24,24.09768901]
[1750315421104,4.93012704,145.26,145.24,24.09768901]
[1750315421304,31.26068471,145.27,145.24,24.09768901]
[1750315421521,4.93008439,145.26,145.24,24.09768901]
[1750315421724,31.26068471,145.27,145.24,24.09768901]
[1750315422024,4.93290861,145.26,145.24,24.09768901]
[1750315422232,31.26068471,145.27,145.24,24.09768901]
[1750315422597,4.9324708,145.26,145.24,24.09768901]
[1750315422797,31.26068471,145.27,145.24,24.09768901]
[1750315423018,10.19465596,145.26,145.24,24.09768901]
[1750315423300,5.26068471,145.26,145.24,24.09768901]
[1750315423521,31.26068471,145.27,145.24,24.09768901]
[1750315423705,4.95066647,145.26,145.24,24.09768901]
[1750315424028,31.26068471,145.27,145.24,17.21253341]
[1750315424323,4.95037505,145.26,145.24,17.21253341]
[1750315424527,31.26068471,145.27,145.24,17.21253341]
[1750315424727,4.94989892,145.26,145.24,17.21253341]
[1750315424927,31.26068471,145.27,145.24,24.09768901]
[1750315425113,4.94925715,145.26,145.24,24.09768901]
[1750315425413,31.26068471,145.27,145.24,24.09768901]
[1750315425611,4.94870838,145.26,145.24,24.09768901]
[1750315425811,31.26068471,145.27,145.24,24.09768901]
[1750315426012,4.94864752,145.26,145.24,24.09768901]
[1750315426229,31.26068471,145.27,145.24,24.09768901]
[1750315426401,4.94854532,145.26,145.24,24.09768901]
[1750315426729,31.26068471,145.27,145.24,24.09768901]
[1750315427034,4.94878276,145.26,145.24,24.09768901]
[1750315427235,31.26068471,145.27,145.24,24.09768901]
[1750315427418,4.9488416,145.26,145.24,24.09768901]
[1750315427603,31.26068471,145.27,145.24,24.09768901]
[1750315427803,4.94885748,145.26,145.24,24.09768901]
[1750315428012,31.26068471,145.27,145.24,24.09768901]
[1750315428213,4.95130595,145.26,145.24,24.09768901]
[1750315428421,31.26068471,145.27,145.24,24.09768901]
[1750315428621,4.95247205,145.26,145.24,24.09768901]
[1750315428815,31.26068471,145.27,145.24,24.09768901]
[1750315429009,4.9576879,145.26,145.24,24.09768901]
[1750315429317,31.26068471,145.27,145.24,24.09768901]
[1750315429631,4.95746576,145.26,145.24,24.09768901]
[1750315429833,31.26068471,145.27,145.24,24.09768901]
[1750315430033,4.95710475,145.26,145.24,24.09768901]
[1750315430234,31.26068471,145.27,145.24,24.09768901]
[1750315430439,4.95697863,145.26,145.24,24.09768901]
[1750315430731,31.26068471,145.27,145.22,34.43051921]
[1750315431037,4.95708579,145.26,145.23,5.26068471]
[1750315431337,31.26068471,145.27,145.23,5.26068471]
[1750315431537,4.95630286,145.26,145.23,5.26068471]
[1750315431729,31.26068471,145.27,145.23,5.26068471]
[1750315431932,4.95625284,145.26,145.23,5.26068471]
[1750315432121,26.0,145.27,145.23,5.26068471]
[1750315432320,4.95627081,145.26,145.23,5.26068471]
[1750315432622,26.0,145.27,145.23,5.26068471]
[1750315432918,4.9569027,145.26,145.24,6.8851556]
[1750315433121,26.0,145.27,145.24,24.09804461]
[1750315433321,4.95690704,145.26,145.24,24.09804461]
[1750315433504,26.0,145.27,145.24,24.09804461]
[1750315433705,4.95691193,145.26,145.24,24.09804461]
[1750315433933,26.0,145.27,145.24,24.09804461]
[1750315434117,4.95691539,145.26,145.24,24.09804461]
[1750315434316,26.0,145.27,145.24,24.09804461]
[1750315434606,4.95770492,145.26,145.24,24.09804461]
[1750315434806,26.0,145.27,145.24,24.09804461]
[1750315435110,4.95790033,145.26,145.24,24.09804461]
[1750315435307,26.0,145.27,145.24,24.09804461]
[1750315435535,4.95822719,145.26,145.24,24.09804461]
[1750315435742,26.0,145.27,145.24,24.09804461]
[1750315435920,4.95825817,145.26,145.24,24.09804461]
[1750315436119,26.0,145.27,145.24,24.09804461]
[1750315436319,4.95828368,145.26,145.24,24.09804461]
[1750315436520,26.0,145.27,145.24,24.09804461]
[1750315436741,4.95935761,145.26,145.24,24.09804461]
[1750315436939,26.0,145.27,145.24,24.09804461]
[1750315437144,4.95839768,145.26,145.24,24.09804461]
[1750315437341,26.0,145.27,145.24,24.09804461]
[1750315437544,4.95640261,145.26,145.24,24.09804461]
[1750315437846,26.0,145.27,145.24,24.09804461]
[1750315438046,4.95634122,145.26,145.24,24.09804461]
[1750315438248,26.0,145.27,145.24,24.09804461]
[1750315438557,4.95610415,145.26,145.24,24.09804461]
[1750315438716,4.95610415,145.25,145.24,24.09804461]
[1750315441326,4.95418791,145.25,145.24,24.09804461]
[1750315442333,4.9549278,145.25,145.24,24.09804461]
[1750315446627,26.0,145.27,145.24,24.09804461]
[1750315446826,10.05510079,145.26,145.24,17.21288901]
[1750315447041,4.95561689,145.25,145.24,17.21288901]
[1750315449554,4.95572103,145.25,145.24,17.21288901]
[1750315452553,4.95524252,145.25,145.24,17.21288901]
[1750315455247,4.93747339,145.25,145.24,17.21288901]
[1750315457227,4.93749535,145.25,145.24,17.21288901]
[1750315457436,6.34083094,145.31,145.24,22.47357372]
[1750315457629,12.58955774,145.3,145.27,5.26068471]
[1750315457831,10.03898217,145.29,145.27,5.26068471]
[1750315458057,4.93817288,145.28,145.27,5.26068471]
[1750315458261,4.93817288,145.28,145.26,5.26068471]
[1750315458561,5.0983927,145.29,145.27,24.09306807]
[1750315458741,4.93826035,145.28,145.27,24.09306807]
[1750315461040,5.26068471,145.3,145.27,24.09306807]
[1750315462956,5.26068471,145.3,145.27,17.20933434]
[1750315464434,33.80790041,145.31,145.27,22.47001905]
[1750315464634,5.09319981,145.3,145.27,22.47001905]
[1750315464864,31.26068471,145.31,145.27,22.47001905]
[1750315465166,5.09337953,145.3,145.27,24.09306807]
[1750315465360,31.26068471,145.31,145.27,29.35375278]
[1750315465540,5.09278546,145.3,145.27,29.35375278]
[1750315465843,31.26068471,145.31,145.27,29.35375278]
[1750315466163,5.09278651,145.3,145.27,29.35375278]
[1750315466339,26.0,145.31,145.27,29.35375278]
[1750315466540,5.09225304,145.3,145.27,29.35375278]
[1750315466839,31.26068471,145.31,145.27,29.35375278]
[1750315467042,5.09225304,145.3,145.27,29.35375278]
[1750315467241,31.26068471,145.31,145.27,29.35375278]
[1750315467439,5.09217333,145.3,145.27,29.35375278]
[1750315467645,31.26068471,145.31,145.27,29.35375278]
[1750315467946,5.09167531,145.3,145.27,29.35375278]
[1750315468158,31.26068471,145.31,145.27,29.35375278]
[1750315468480,5.09305389,145.3,145.27,29.35375278]
[1750315468774,31.26068471,145.31,145.27,29.35375278]
[1750315468973,5.09276053,145.3,145.27,29.35375278]
[1750315469182,31.26068471,145.31,145.27,29.35375278]
[1750315469464,5.09274375,145.3,145.27,29.35375278]
[1750315469666,31.26068471,145.31,145.27,29.35375278]
[1750315469833,5.09244191,145.3,145.26,5.26068471]
[1750315470032,31.26068471,145.31,145.26,5.26068471]
[1750315470258,5.09244103,145.3,145.26,5.26068471]
[1750315470477,5.09244103,145.3,145.27,5.26068471]
[1750315470637,5.26068471,145.31,145.27,5.26068471]
[1750315471960,5.26068471,145.31,145.28,24.09140968]
[1750315472657,31.26068471,145.32,145.28,29.35209439]
[1750315472860,5.09096688,145.31,145.28,29.35209439]
[1750315473046,31.26068471,145.32,145.28,29.35209439]
[1750315473251,5.09096688,145.31,145.28,29.35209439]
[1750315473448,31.26068471,145.32,145.28,29.35209439]
[1750315473662,5.09058617,145.31,145.28,29.35209439]
[1750315473866,31.26068471,145.32,145.28,29.35209439]
[1750315474067,5.09058617,145.31,145.28,29.35209439]
[1750315474269,31.26068471,145.32,145.28,29.35209439]
[1750315474455,5.09026903,145.31,145.28,29.35209439]
[1750315476756,31.26068471,145.32,145.28,29.35209439]
[1750315478081,5.09143302,145.31,145.28,29.35209439]
[1750315478779,5.26068471,145.3,145.28,24.09140968]
[1750315480483,5.26068471,145.3,145.28,17.20814977]
[1750315480776,5.26068471,145.29,145.27,6.88373373]
[1750315481488,10.35153548,145.3,145.27,24.09306807]
[1750315483669,5.09085077,145.3,145.27,29.35375278]
[1750315485284,5.26068471,145.31,145.27,24.09306807]
[1750315485468,5.09210049,145.3,145.27,24.09306807]
[1750315486185,10.3527852,145.31,145.27,24.09306807]
[1750315486388,5.26068471,145.3,145.27,24.09306807]
[1750315490970,26.0,145.32,145.27,24.09306807]
[1750315491277,5.26068471,145.3,145.27,24.09306807]
[1750315494371,26.0,145.32,145.27,24.09306807]
[1750315494587,5.26068471,145.31,145.27,24.09306807]
[1750315494778,31.26068471,145.32,145.27,29.35375278]
[1750315497483,5.26068471,145.31,145.27,29.35375278]
[1750315498884,31.26068471,145.32,145.28,5.26068471]
[1750315499079,31.26068471,145.32,145.27,24.09306807]
[1750315499080,10.11204474,145.34,145.29,5.26068471]
[1750315499276,10.35764187,145.33,145.29,5.26068471]
[1750315499477,5.09695716,145.32,145.29,5.26068471]
[1750315499693,5.26068471,145.33,145.29,5.26068471]
[1750315499998,5.09799324,145.32,145.29,5.26068471]
[1750315500189,5.26068471,145.33,145.3,6.88231245]
[1750315500499,5.09858866,145.32,145.3,24.08809359]
[1750315500700,5.26068471,145.33,145.3,24.08809359]
[1750315500871,5.09991316,145.32,145.3,24.08809359]
[1750315501067,7.80840441,145.33,145.3,24.08809359]
[1750315501293,5.09984362,145.32,145.3,24.08809359]
[1750315501490,5.26068471,145.33,145.3,24.08809359]
[1750315501697,5.10077198,145.32,145.3,24.08809359]
[1750315501909,5.26068471,145.32,145.3,24.08809359]
[1750315502087,31.26068471,145.33,145.3,17.20578114]
[1750315502278,5.10022664,145.32,145.3,17.20578114]
[1750315502479,31.26068471,145.33,145.3,17.20578114]
[1750315502680,5.1012462,145.32,145.3,17.20578114]
[1750315502883,31.26068471,145.33,145.3,17.20578114]
[1750315503096,5.10124847,145.32,145.3,17.20578114]
[1750315503402,31.26068471,145.33,145.3,17.20578114]
[1750315503605,5.10074598,145.32,145.3,17.20578114]
[1750315503787,31.26068471,145.33,145.3,17.20578114]
[1750315503975,5.10074598,145.32,145.3,17.20578114]
[1750315504177,31.26068471,145.33,145.3,17.20578114]
[1750315504477,5.10061846,145.32,145.3,17.20578114]
[1750315504670,31.26068471,145.33,145.3,17.20578114]
[1750315504902,5.10130736,145.32,145.3,17.20578114]
[1750315505105,31.26068471,145.33,145.3,17.20578114]
[1750315505275,5.10129797,145.32,145.3,17.20578114]
[1750315505484,31.26068471,145.33,145.3,17.20578114]
[1750315505681,5.1013155,145.32,145.3,17.20578114]
[1750315505981,31.26068471,145.33,145.3,17.20578114]
[1750315506182,5.10117396,145.32,145.3,17.20578114]
[1750315506398,31.26068471,145.33,145.3,17.20578114]
[1750315506603,5.10119056,145.32,145.3,17.20578114]
[1750315506905,31.26068471,145.33,145.3,17.20578114]
[1750315507100,5.26068471,145.35,145.3,22.46646585]
[1750315507280,31.10083712,145.34,145.3,22.46646585]
[1750315507479,26.0,145.34,145.3,22.46646585]
[1750315508402,26.0,145.34,145.3,29.3487783]
[1750315509508,5.26068471,145.35,145.3,63.76034058]
[1750315509682,5.26068471,145.35,145.31,5.26068471]
[1750315510606,5.26068471,145.35,145.32,24.08477841]
[1750315510811,2.54819703,145.36,145.32,24.08477841]
[1750315510996,10.35795353,145.35,145.32,24.08477841]
[1750315511204,10.35673102,145.35,145.32,24.08477841]
[1750315511915,5.26068471,145.35,145.3,58.49965587]
[1750315512099,5.26068471,145.35,145.31,5.26068471]
[1750315512300,5.26068471,145.35,145.3,63.76034058]
[1750315513009,2.54821497,145.36,145.3,63.76034058]
[1750315513312,10.35740748,145.35,145.3,63.76034058]
[1750315513811,5.26068471,145.35,145.3,63.76034058]
[1750315514201,10.35635374,145.35,145.3,63.76034058]
[1750315515701,10.35635374,145.35,145.31,5.26068471]
[1750315516820,10.35635374,145.35,145.32,24.08477841]
[1750315517117,5.09566903,145.35,145.32,24.08477841]
[1750315517317,5.26068471,145.35,145.32,24.08477841]
[1750315518295,10.35481976,145.36,145.32,29.34546312]
[1750315518712,5.26068471,145.36,145.32,29.34546312]
[1750315518915,26.0,145.37,145.33,5.26068471]
[1750315519228,5.09469906,145.39,145.35,5.26068471]
[1750315519521,10.35538377,145.39,145.35,5.26068471]
[1750315520317,5.26068471,145.38,145.34,5.26068471]
[1750315520613,5.09469906,145.39,145.35,24.07980736]
[1750315520818,5.26068471,145.39,145.35,29.34049207]
[1750315524027,5.26068471,145.39,145.35,5.26068471]
[1750315525827,5.26068471,145.39,145.33,77.13722883]
[1750315526014,5.26068471,145.39,145.36,24.07815079]
[1750315533835,16.44711544,145.4,145.36,24.07815079]
[1750315534131,5.26068471,145.39,145.36,24.07815079]
[1750315538140,5.26068471,145.38,145.36,24.07815079]
[1750315539034,5.26068471,145.38,145.36,17.19867914]
[1750315540065,5.26068471,145.39,145.36,17.19867914]
[1750315544336,5.26068471,145.39,145.35,5.26068471]
[1750315544924,5.26068471,145.37,145.34,24.08146414]
[1750315546432,5.26068471,145.38,145.34,17.20104582]
[1750315547835,5.26068471,145.38,145.34,24.08146414]
[1750315550760,5.09125201,145.39,145.34,24.08146414]
[1750315550761,5.26068471,145.37,145.34,24.08146414]
[1750315552150,16.44711544,145.4,145.34,24.08146414]
[1750315552324,5.26068471,145.37,145.34,24.08146414]
[1750315552519,18.99532872,145.4,145.34,24.08146414]
[1750315552520,16.44711544,145.4,145.34,24.08146414]
[1750315552744,5.26068471,145.37,145.34,24.08146414]
[1750315553557,5.26068471,145.37,145.33,5.26068471]
[1750315554628,5.26068471,145.37,145.34,24.08146414]
[1750315555350,10.35815001,145.38,145.34,24.08146414]
[1750315556629,10.35941065,145.38,145.34,24.08146414]
[1750315557121,5.26068471,145.38,145.34,24.08146414]
[1750315560234,2.55007295,145.39,145.34,24.08146414]
[1750315560428,5.26068471,145.37,145.34,24.08146414]
[1750315561046,5.26068471,145.38,145.34,24.08146414]
[1750315561462,5.26068471,145.37,145.34,24.08146414]
[1750315562580,5.26068471,145.36,145.34,24.08146414]
[1750315563061,5.26068471,145.37,145.34,24.08146414]
[1750315563261,5.10830847,145.36,145.34,17.20104582]
[1750315563566,5.26068471,145.37,145.34,17.20104582]
[1750315563745,5.10778299,145.36,145.34,17.20104582]
[1750315563947,5.26068471,145.37,145.34,17.20104582]
[1750315564165,5.10778299,145.36,145.34,17.20104582]
[1750315564367,5.26068471,145.37,145.34,17.20104582]
[1750315564545,5.10741436,145.36,145.34,17.20104582]
[1750315564736,5.26068471,145.37,145.34,17.20104582]
[1750315564936,5.10725321,145.36,145.34,17.20104582]
[1750315565237,5.26068471,145.37,145.34,17.20104582]
[1750315565438,5.10658413,145.36,145.34,17.20104582]
[1750315565653,5.26068471,145.37,145.34,17.20104582]
[1750315565855,5.10661644,145.36,145.34,17.20104582]
[1750315566164,5.26068471,145.37,145.34,17.20104582]
[1750315566333,5.10741418,145.36,145.34,17.20104582]
[1750315566535,5.26068471,145.37,145.34,17.20104582]
[1750315566734,5.10688662,145.36,145.34,17.20104582]
[1750315566977,5.26068471,145.37,145.34,17.20104582]
[1750315567271,5.10805327,145.36,145.34,17.20104582]
[1750315567445,5.26068471,145.37,145.34,17.20104582]
[1750315567642,5.10796311,145.36,145.34,17.20104582]
[1750315567844,5.26068471,145.37,145.34,17.20104582]
[1750315568049,5.1081293,145.36,145.34,17.20104582]
[1750315568251,2.55380442,145.38,145.34,17.20104582]
[1750315568454,5.26068471,145.35,145.33,6.88089176]
[1750315568765,5.26068471,145.34,145.33,6.88089176]
[1750315569163,5.26068471,145.35,145.33,6.88089176]
[1750315569355,28.55311561,145.36,145.33,6.88089176]
[1750315569677,5.1036695,145.35,145.33,6.88089176]
[1750315569859,31.26068471,145.36,145.33,6.88089176]
[1750315570043,5.10344661,145.35,145.33,6.88089176]
[1750315570243,31.26068471,145.36,145.32,24.08369667]
[1750315570444,5.10236987,145.35,145.32,24.08369667]
[1750315570742,26.0,145.36,145.32,29.34438138]
[1750315571870,5.26068471,145.37,145.32,29.34438138]
[1750315575568,26.0,145.37,145.32,29.34438138]
[1750315575777,31.26068471,145.37,145.32,29.34438138]
[1750315578252,5.10185542,145.36,145.32,29.34438138]
[1750315578571,31.26068471,145.37,145.32,29.34438138]
[1750315578771,5.10126466,145.36,145.32,29.34438138]
[1750315578968,31.26068471,145.37,145.32,29.34438138]
[1750315579270,5.10085917,145.36,145.32,29.34438138]
[1750315579447,31.26068471,145.37,145.32,29.34438138]
[1750315579648,5.10094985,145.36,145.32,29.34438138]
[1750315579847,31.26068471,145.37,145.32,29.34438138]
[1750315580047,5.10088234,145.36,145.32,29.34438138]
[1750315580272,31.26068471,145.37,145.32,29.34438138]
[1750315580473,5.10099285,145.36,145.32,29.34438138]
[1750315580678,31.26068471,145.37,145.32,29.34438138]
[1750315580848,5.10102892,145.36,145.32,29.34438138]
[1750315581047,31.26068471,145.37,145.32,29.34438138]
[1750315581265,5.10116341,145.36,145.32,29.34438138]
[1750315581474,31.26068471,145.37,145.32,29.34438138]
[1750315581778,5.10120177,145.36,145.32,29.34438138]
[1750315581948,31.26068471,145.37,145.32,29.34438138]
[1750315582148,5.10115185,145.36,145.32,29.34438138]
[1750315582348,31.26068471,145.37,145.32,29.34438138]
[1750315582647,5.10129107,145.36,145.32,29.34438138]
[1750315582850,31.26068471,145.37,145.32,29.34438138]
[1750315583074,5.10133807,145.36,145.32,29.34438138]
[1750315583272,31.26068471,145.37,145.32,29.34438138]
[1750315583479,5.10128255,145.36,145.32,29.34438138]
[1750315583775,31.26068471,145.37,145.32,29.34438138]
[1750315583960,5.10129911,145.36,145.32,29.34438138]
[1750315584162,31.26068471,145.37,145.32,29.34438138]
[1750315584361,5.10123271,145.36,145.32,29.34438138]
[1750315584561,31.26068471,145.37,145.32,29.34438138]